Cogmind - Beta 17.1 @@@ ROGUE MODE // 2026.09.17 @ 17:01:37 Player: fai Result: Destroyed by Y-45 Defender with Beam Rifle Performance ------------- Evolutions (1) 500 Regions Visited (5) 1000 Robots Destroyed (92) 460 Value Destroyed (2409) 2409 Prototype IDs (4) 80 Alien Tech Used (0) 0 Bonus (7507) 7507 TOTAL SCORE: 11956 Bonus ------- High Alert Combat Kills 85 Follower Combat Kills 72 Prayed to X0-1V1 5000 Major X0-1V1 Interference 2150 Entered Garrisons 200 Cogmind --------- Core Integrity 0/240 Matter 254/300 Energy 1225/1225 System Corruption 36% Temperature Cool (18) Movement Rolling (98) Ox1 Location -9/Garrison Parts ------- > --- POWER (1) -------- Light Ion Engine > --- PROPULSION (3) --- Compact Wheel Armored Wheel Armored Wheel > --- UTILITY (3) ------ High-capacity Storage Unit Improved Targeting Computer X0-1V1's Piety Tracker > --- WEAPON (3) ------- Improved Assault Rifle (fused) Improved Assault Rifle Improved Assault Rifle > --- INVENTORY (20) --- Light Ion Engine Compact Wheel Compact Wheel Armored Wheel Huge Storage Unit Improved Targeting Computer Relay Coupler [Sentry] (19) Relay Coupler [Hunter] (18) Relay Coupler [Behemoth] (10) Medium Laser Beam Rifle Advanced Beam Cannon Advanced Beam Cannon Advanced Beam Cannon Light Assault Rifle Heavy Assault Rifle Improved Assault Rifle Datajack Katana Peak State ------------ > --- POWER ------------ Light Ion Engine > --- PROPULSION ------- Compact Wheel Armored Wheel Armored Wheel > --- UTILITY ---------- High-capacity Storage Unit Improved Targeting Computer X0-1V1's Piety Tracker > --- WEAPON ----------- Improved Assault Rifle Improved Assault Rifle Katana > --- INVENTORY -------- Light Ion Engine Compact Wheel Compact Wheel Armored Wheel Huge Storage Unit Improved Targeting Computer Relay Coupler [Sentry] Relay Coupler [Behemoth] Medium Laser Beam Rifle Advanced Beam Cannon Advanced Beam Cannon Advanced Beam Cannon Light Assault Rifle Heavy Assault Rifle Improved Assault Rifle Improved Assault Rifle Datajack [Rating: 35] Favorites ----------- Power Ion Engine Engine Ion Engine Power Core Light Nuclear Core Propulsion Wheel Leg Improved Aluminum Leg Wheel Wheel Utility High-capacity Storage Unit Device X0-1V1's Piety Tracker Storage High-capacity Storage Unit Processor Improved Targeting Computer Protection Light Armor Plating Weapon Improved Assault Rifle Energy Gun Medium Laser Ballistic Gun Improved Assault Rifle Ballistic Cannon Light Cannon Slashing Weapon Katana Special Melee Weapon Datajack Build | -11 -10 -10 -9 -9 -9 ------- Run | Yrd Mat Min Mat Sto Gar Slots Evolved 2 | . . . 2 . . Power . | . . . . . . Propulsion 1 | . . . 1 . . Utility 1 | . . . 1 . . Weapon . | . . . . . . Parts Attached 52 | 7 7 3 20 12 3 Power 6 | 1 1 . 3 1 . Engine 5 | 1 . . 3 1 . Core 1 | . 1 . . . . Reactor . | . . . . . . Propulsion 21 | 2 2 1 8 5 3 Treads . | . . . . . . Leg 2 | . . . . 2 . Wheel 19 | 2 2 1 8 3 3 Hover . | . . . . . . Flight . | . . . . . . Utility 11 | 2 3 1 4 1 . Device 5 | 1 1 1 2 . . Storage 3 | 1 2 . . . . Processor 2 | . . . 1 1 . Hackware . | . . . . . . Protection 1 | . . . 1 . . Artifact . | . . . . . . Weapon 14 | 2 1 1 5 5 . Energy Gun 2 | 1 . . 1 . . Energy Cannon . | . . . . . . Ballistic Gun 9 | 1 . 1 4 3 . Ballistic Cannon 1 | . 1 . . . . Launcher . | . . . . . . Special Weapon . | . . . . . . Impact Weapon . | . . . . . . Slashing Weapon 1 | . . . . 1 . Piercing Weapon . | . . . . . . Special Melee Weapon 1 | . . . . 1 . Unidentified Prototypes 2 | . 1 . 1 . . Parts Lost 21 | . 3 3 10 5 . Power 2 | . . 1 . 1 . Propulsion 12 | . 2 1 6 3 . Utility 4 | . 1 . 3 . . Weapon 3 | . . 1 1 1 . Highest Loss Streak 2 | . 2 2 2 2 . To Critical Strikes 1 | . . . . 1 . Average Backups 9 | 1 8 7 9 12 15 Power 1 | . . . 1 1 1 Propulsion 2 | . 5 3 1 . 1 Utility 1 | . 1 2 2 1 3 Weapon 4 | . 1 . 3 8 9 Tool/Special . | . . . . . . Unused Backups 9 | . . . . 1 8 Power . | . . . . . . Propulsion . | . . . . . . Utility 5 | . . . . . 5 Weapon 4 | . . . . 1 3 Tool/Special . | . . . . . . Average Slot Usage (%) 97 | . 98 96 95 97 98 Engine 8 | . 5 3 11 10 10 Core 2 | . 8 9 . . . Wheel 28 | . 27 28 30 26 28 Device 13 | . 13 12 15 10 10 Storage 11 | . 14 14 11 10 10 Processor 3 | . . . 1 10 10 Protection 1 | . . . 3 . . Energy Gun 8 | . 14 14 11 . . Ballistic Gun 13 | . 1 1 10 27 24 Ballistic Cannon 3 | . 12 11 . . . Peak Build Rating 35 | 7 22 21 28 31 35 Average Rating 20 | 5 9 19 21 29 32 On Entrance 15 | . 7 8 19 28 29 Avg Prop Armor Cover (%) 14 | . . . . 14 . Naked Turns . | . . . . . . Heaviest Build 55 | 12 51 51 55 55 53 Greatest Support 48 | 20 20 20 38 48 48 Greatest Overweight (x) 5 | . 2 2 2 5 1 Average Overweight (x) 1 | . 1 2 1 1 1 Largest Inventory Capacity 20 | 8 20 20 20 20 20 Average Capacity 19 | 7 19 20 20 20 20 Most Carried 19 | 6 10 8 12 15 19 Average Carried 9 | 1 8 7 9 12 15 Final Capacity 20 | 8 20 20 20 20 20 Final Carried 19 | 6 8 6 11 13 19 Class Distribution -------------------- 42% | Mutant 30% | Scavenger-Mutant 18% | Scavenger-Gunner 7% | Scientist-Mutant Dominant Class ---------------- Mutant | -10/Materials Mutant | -10/Mines Scavenger-Mutant | -9/Materials Scavenger-Gunner | -9/Storage Scavenger-Mutant | -9/Garrison Resources | -11 -10 -10 -9 -9 -9 ----------- Run | Yrd Mat Min Mat Sto Gar Matter Collected 2174 | 213 270 51 944 561 135 Remotely . | . . . . . . Salvage Created 3404 | 172 390 72 1408 1133 229 Parts 210 | 17 25 5 85 66 12 Haulers Intercepted 3 | . . . 2 1 . Recyclers Shooed 2 | . . . 1 1 . Parts Field Recycled . | . . . . . . Retrieved Matter . | . . . . . . Parts Self-Destructed . | . . . . . . Prevented . | . . . . . . Parts Restored . | . . . . . . Kills | -11 -10 -10 -9 -9 -9 ------- Run | Yrd Mat Min Mat Sto Gar Combat Hostiles Destroyed 62 | . 11 2 29 19 1 Guns 55 | . 6 1 28 19 1 Cannons 6 | . 5 1 . . . Classes Destroyed 12 | 3 3 . 5 1 . Worker 8 | 2 . . 5 1 . Builder 1 | . . . 1 . . Tunneler 4 | 4 . . . . . Hauler 3 | . . . 2 1 . Recycler 5 | 1 1 . . 3 . Operator 4 | . . . 2 2 . Watcher 5 | . 1 . 2 2 . Swarmer 15 | . 5 . 7 3 . Grunt 32 | . 6 2 15 9 . Brawler 1 | . . . 1 . . Duelist 1 | . . . . 1 . Sentry 13 | . . . 6 6 1 Best Kill Streak 15 | 7 5 2 15 7 1 Combat Bots Only 6 | . 5 2 6 3 1 Max Kills in Single Turn 2 | 1 1 1 1 2 1 Gunslinging 1 | . . . . 1 . Exploded . | . . . . . . Melee . | . . . . . . Uniques/NPCs Destroyed . | . . . . . . Combat | -11 -10 -10 -9 -9 -9 -------- Run | Yrd Mat Min Mat Sto Gar Hostile Shots Fired 235 | . 34 15 126 45 15 Missed 80 | . 12 1 45 13 9 Hits 155 | . 22 14 81 32 6 Melee 4 | . . . . 4 . Projectile 151 | . 22 14 81 28 6 Critical Strikes 7 | . . . 3 4 . Damage Taken 1934 | . 282 165 938 462 87 Core 367 | . 48 62 184 43 30 Absorbed by Shields . | . . . . . . Ignored by Resistances 66 | . 4 . 45 11 6 Core Remaining (%) 77 | 100 . 54 . . . Volleys Fired 233 | 17 34 9 105 62 6 Largest 3 | 2 2 2 2 3 3 Hottest 106 | 70 80 80 106 69 69 Shots Fired 500 | 34 64 17 211 156 18 Gun 460 | 34 30 11 211 156 18 Cannon 40 | . 34 6 . . . Launcher . | . . . . . . Special . | . . . . . . Kinetic 329 | 17 34 8 96 156 18 Thermal 171 | 17 30 9 115 . . Explosive . | . . . . . . Electromagnetic . | . . . . . . Robot Hit Streak 38 | 7 6 2 38 20 13 Robot Miss Streak 5 | 3 5 2 5 5 1 Penetration Max . | . . . . . . Secondary Targets 5 | . . . 4 1 . Max Gunslinging Chain 1 | . . . 1 1 . Shots Hit Robots 348 | 18 29 8 155 116 22 Core Hits 139 | 10 17 4 59 42 7 Critical Kills . | . . . . . . Critical Parts Destroyed . | . . . . . . Critical Strikes 13 | 2 4 . 7 . . Burn 11 | 2 2 . 7 . . Blast 2 | . 2 . . . . Melee Attacks 22 | . . . . 10 12 Impact . | . . . . . . Slashing 13 | . . . . 1 12 Piercing . | . . . . . . Sneak Attacks 9 | . . . . 9 . Combat Hostiles . | . . . . . . Follow-up Attacks . | . . . . . . Damage Inflicted 5293 | 208 548 111 2242 1588 596 Guns 4496 | 208 202 44 2242 1588 212 Cannons 334 | . 267 67 . . . Explosions 79 | . 79 . . . . Melee 384 | . . . . . 384 Ramming . | . . . . . . Kinetic 3294 | 59 267 74 1094 1588 212 Thermal 1615 | 149 281 37 1148 . . Explosive . | . . . . . . Electromagnetic . | . . . . . . Impact . | . . . . . . Slashing 384 | . . . . . 384 Piercing . | . . . . . . Highest Corruption 36 | . . . 8 36 36 Average Corruption 15 | . . . 8 16 36 Corruption Purged . | . . . . . . Corruption Blocked . | . . . . . . Effects 61 | . . . 16 35 10 Message Errors 16 | . . . 4 10 2 Matter Fused 11 | . . . 4 5 2 Heat Flow Errors 4 | . . . 3 . 1 Energy Discharges 11 | . . . 4 7 . Parts Rejected 1 | . . . . . 1 Parts Fused 2 | . . . . 2 . Data Loss (minor) 5 | . . . . 4 1 Data Loss (major) 2 | . . . . . 2 Misfires 2 | . . . 1 1 . Misdirections 1 | . . . . . 1 Weapon Failures 6 | . . . . 6 . Overload Shots . | . . . . . . Overflow Damage 69 | . 69 . . . . Projectiles 16 | . 16 . . . . Explosions 53 | . 53 . . . . Melee . | . . . . . . Knockbacks 10 | . 7 3 . . . Impact . | . . . . . . Kinetic 8 | . 6 2 . . . Secondary 2 | . 1 1 . . . Self-Inflicted Damage 77 | . 77 . . . . Shots 1 | . 1 . . . . Rammed . | . . . . . . Targets Rammed . | . . . . . . Kicked . | . . . . . . Crushed . | . . . . . . Highest Temperature 233 | 90 192 212 215 19 233 Average Temperature 40 | 36 54 97 23 10 83 Received Heat Transfer 756 | . 72 93 399 165 27 Siege Activations . | . . . . . . Martial Activations . | . . . . . . Shielding Activations . | . . . . . . Robots Disrupted . | . . . . . . Combat Hostiles . | . . . . . . Robots Corrupted . | . . . . . . Combat Hostiles . | . . . . . . Parts Fried . | . . . . . . Impact Corruptions 1 | . 1 . . . . Robots Melted 1 | . . . 1 . . Combat Hostiles 1 | . . . 1 . . Parts Melted 12 | 2 . . 10 . . Heat Transferred 5156 | 592 790 111 3663 . . Parts Sabotaged . | . . . . . . Parts Stolen . | . . . . . . Parts Stripped . | . . . . . . Power Chain Reactions . | . . . . . . Alert | -11 -10 -10 -9 -9 -9 ------- Run | Yrd Mat Min Mat Sto Gar Maximum Alert Level 2 | . . . 2 2 2 Low Security (%) 48 | 100 100 100 37 . . Level 1 37 | . . . 45 84 18 Level 2 14 | . . . 16 15 81 Level 3 . | . . . . . . Level 4 . | . . . . . . Level 5 . | . . . . . . High Security . | . . . . . . Max Security . | . . . . . . Peak Influence 666 | 15 112 108 666 525 486 Initial 338 | . 9 36 18 278 338 Average 209 | 2 45 54 257 330 425 Influence Increases 2510 | 35 397 152 1122 615 189 Destroy 0b10 Robot/C 1320 | . 220 40 580 400 80 Destroy 0b10 Robot/NC 165 | 35 10 . 60 50 10 Destroy Leader 336 | . 52 10 148 116 10 Allied During Kill 28 | . . . . 14 14 Successful Hack 49 | . 9 . 27 13 . Disable Machine 45 | . 30 . . . 15 Anti-Garrison Action 50 | . . . . . 50 Destroy Structure 53 | . 31 . 5 7 10 Partial Spotted 30 | . 15 . . 15 . Lose Combat Pursuer 120 | . 30 . 90 . . Miscellaneous 314 | . . 102 212 . . Influence Decreases 2043 | 20 318 198 510 754 243 Entered New Map 659 | . 6 58 30 382 183 Time Decay 998 | 20 186 110 380 302 . Lost Part 210 | . 30 30 100 50 . Lost Ally 80 | . . . . 20 60 Purge Threat 96 | . 96 . . . . Squads Dispatched 10 | . 2 . 3 5 . Investigation 3 | . 2 . 1 . . Extermination . | . . . . . . Reinforcement 6 | . . . 2 4 . Assault . | . . . . . . Garrison 1 | . . . . 1 . Intercept . | . . . . . . Searches Triggered . | . . . . . . Construction Impeded . | . . . . . . Haulers Reinforced . | . . . . . . Active Scanning Responses . | . . . . . . Cargo Convoy Interrupts . | . . . . . . Stealth | -11 -10 -10 -9 -9 -9 --------- Run | Yrd Mat Min Mat Sto Gar Distress Signals 7 | . . . 5 2 . Communications Jammed . | . . . . . . Distress Signals . | . . . . . . Times Spotted 100 | . 19 2 44 28 7 Peak Tracking Total 6 | . 4 2 5 6 2 Tactical Retreats 6 | . 2 . 4 . . Traps | -11 -10 -10 -9 -9 -9 ------- Run | Yrd Mat Min Mat Sto Gar Traps Triggered 10 | . 2 . 2 5 1 Indirectly . | . . . . . . Trap Hack Attempts . | . . . . . . Triggered . | . . . . . . Disarmed . | . . . . . . Reprogrammed . | . . . . . . Reused . | . . . . . . Traps Extracted . | . . . . . . Installed . | . . . . . . Triggered . | . . . . . . Machines | -11 -10 -10 -9 -9 -9 ---------- Run | Yrd Mat Min Mat Sto Gar Machines Disabled 4 | . 2 . . . 2 Max in Single Turn 2 | . 2 . . . 1 Garrison Relay 1 | . . . . . 1 Machines Repaired . | . . . . . . Machines Dismantled . | . . . . . . Machines Sabotaged . | . . . . . . Overloaded Fab Kills . | . . . . . . Hacking | -11 -10 -10 -9 -9 -9 --------- Run | Yrd Mat Min Mat Sto Gar Machines Accessed 17 | . 4 1 5 7 . Terminals 15 | . 4 1 4 6 . Fabricators . | . . . . . . Repair Stations . | . . . . . . Recycling Units . | . . . . . . Scanalyzers 1 | . . . 1 . . Garrison Access 1 | . . . . 1 . Total Hacks 44 | . 9 1 20 14 . Successful 22 | . 4 . 10 8 . Failed 22 | . 5 1 10 6 . Catastrophic 4 | . . . 2 2 . Database Lockouts . | . . . . . . Manual 27 | . 7 1 11 8 . Terminals 35 | . 9 1 12 13 . Fabricators . | . . . . . . Repair Stations . | . . . . . . Recycling Units . | . . . . . . Scanalyzers 8 | . . . 8 . . Garrison Access 1 | . . . . 1 . Terminal Hacks 9 | . 3 . 1 5 . Prototype ID Bank 1 | . . . . 1 . Open Door 3 | . . . . 3 . Branch Access Points 1 | . . . 1 . . Alert Level 1 | . . . . 1 . Unreport Threat 1 | . 1 . . . . Locate Traps 2 | . 2 . . . . Fabricator Hacks . | . . . . . . Repair Station Hacks . | . . . . . . Recycling Unit Hacks . | . . . . . . Scanalyzer 6 | . . . 6 . . Retrieve Study 6 | . . . 6 . . Garrison Access Hacks 1 | . . . . 1 . Unlock Access 1 | . . . . 1 . Unauthorized Hacks 6 | . 1 . 3 2 . Terminals 6 | . 1 . 3 2 . Botnet 6 | . 1 . 3 2 . Fabricators . | . . . . . . Repair Stations . | . . . . . . Recycling Units . | . . . . . . Scanalyzers . | . . . . . . Garrison Access . | . . . . . . Data Cores Recovered . | . . . . . . Used . | . . . . . . Hacking Detections 12 | . 4 1 4 3 . Full Trace Events . | . . . . . . Feedback Events . | . . . . . . Feedback Blocked . | . . . . . . Robot Schematics Acquired . | . . . . . . Robots Built . | . . . . . . Authchips . | . . . . . . Time . | . . . . . . Total Robot Build Rating . | . . . . . . Part Schematics Acquired . | . . . . . . Parts Built . | . . . . . . Authchips . | . . . . . . Time . | . . . . . . Total Part Build Rating . | . . . . . . Part Studies Acquired 6 | . . . 6 . . Parts Repaired . | . . . . . . Time . | . . . . . . Parts Recycled . | . . . . . . Recycled Matter . | . . . . . . Retrieved Matter . | . . . . . . Retrieved Components . | . . . . . . Parts Scanalyzed . | . . . . . . Part Schematics Acquired . | . . . . . . Parts Damaged . | . . . . . . Bothacking | -11 -10 -10 -9 -9 -9 ------------ Run | Yrd Mat Min Mat Sto Gar Used RIF Installer . | . . . . . . Robots Hacked . | . . . . . . Non-combat . | . . . . . . Combat . | . . . . . . Robot Hacks Applied . | . . . . . . Relay Couplers Released 3 | . . . . . 3 Machine Destruction 3 | . . . . . 3 Fabnet Peak Effective % . | . . . . . . Robots Rewired 5 | . . . . 5 . Allies Hacked . | . . . . . . Hacks Repelled . | . . . . . . Allies | -11 -10 -10 -9 -9 -9 -------- Run | Yrd Mat Min Mat Sto Gar Total Allies 5 | . . . . 5 . Largest Group 4 | . . . . 4 4 Highest-Rated Group 32 | . . . . 32 32 Highest-Rated Ally 8 | . . . . 8 8 Total Orders . | . . . . . . Ally Attacks 34 | . . . . 14 20 Total Damage 279 | . . . . 113 166 Kills 5 | . . . . 2 3 Allies Corrupted . | . . . . . . Allies Melted . | . . . . . . X0-1V1 Amusement Gains 51 | . 21 . 10 . 20 Average Entertainment 12 | . 14 10 12 9 29 Good Acts 9 | . 2 1 4 2 . Bad Acts 14 | . . 1 4 7 2 Intel | -11 -10 -10 -9 -9 -9 ------- Run | Yrd Mat Min Mat Sto Gar Active Infowar (turns) 810 | 43 511 . 136 120 . Optics 256 | . . . 136 120 . Seismic 554 | 43 511 . . . . Robot Analysis Total . | . . . . . . Derelict Logs Recovered . | . . . . . . Drone Launches . | . . . . . . Drone Recoveries . | . . . . . . Exploration | -11 -10 -10 -9 -9 -9 ------------- Run | Yrd Mat Min Mat Sto Gar Turns Passed 2662 | 119 595 233 880 667 168 Spaces Moved 1553 | 68 425 173 447 343 97 Core 2 | 2 . . . . . Treads . | . . . . . . Legs . | . . . . . . Wheels 1551 | 66 425 173 447 343 97 Hover . | . . . . . . Flight . | . . . . . . Fastest Speed 50 | 50 80 110 95 95 98 Average Speed 103 | 79 108 110 97 110 101 Slowest Speed 155 | 80 110 110 110 155 105 Overloaded Moves . | . . . . . . Propulsion Burnouts . | . . . . . . Robots Hopped . | . . . . . . Potential Cave-ins . | . . . . . . Cave-ins Triggered . | . . . . . . Exploration Rate (%) 42 | 4 80 46 45 61 16 Regions Visited 5 Branch Regions 2 Pre-discovered Areas 1 | . . 1 . . . Known Exits Taken 2 | . . . 1 1 . Unknown Exits Taken 3 | 1 1 1 . . . Scrap Searched . | . . . . . . Spaces Dug 1 | . . . . 1 . Terrain Destroyed 28 | . 27 . . 1 . Melee 1 | . . . . 1 . Projectile . | . . . . . . AOE 27 | . 27 . . . . Terrain Rammed . | . . . . . . Walls Destroyed . | . . . . . . Machines Disabled . | . . . . . . Actions | -11 -10 -10 -9 -9 -9 --------- Run | Yrd Mat Min Mat Sto Gar Total 2091 | 99 496 198 680 487 131 Wait 180 | . 24 12 93 45 6 Move 1549 | 67 424 172 446 343 97 Hop . | . . . . . . Pick Up 36 | 7 3 1 14 8 3 Fast Attach 17 | 7 2 1 1 5 1 Attach 20 | . 2 3 11 4 . Detach . | . . . . . . Swap 23 | . 3 . 8 6 6 Drop 10 | 1 4 . 2 3 . Fire 233 | 17 34 9 105 62 6 Melee 22 | . . . . 10 12 Ram . | . . . . . . Kick . | . . . . . . Crush . | . . . . . . Escape Stasis . | . . . . . . Rewire 1 | . . . . 1 . Trap . | . . . . . . Miscellaneous . | . . . . . . Route ------- -11/Scrapyard -10/Materials (discovered 6 exits: *Mat x3 / *Min x2 / [*Sub]) -10/Mines -9/Materials (discovered 4 exits: [*Mat] / *Min / *Sto x2) -9/Storage (discovered 2 exits: [*Mat] / Gar) -9/Garrison History --------- Turn | Location | Event 22 | -11/Scrapyard | Discovered new exit (range 16) 120 | -11/Scrapyard | Entered Materials 233 | -10/Materials | Discovered new exit (range 14) 255 | -10/Materials | Discovered new exit (range 14) 289 | -10/Materials | Discovered new exit (range 8) 308 | -10/Materials | Build established: Mutant 392 | -10/Materials | Discovered new exit (range 14) 538 | -10/Materials | Discovered new exit (range 8) 622 | -10/Materials | Discovered new exit (range 9) 631 | -10/Materials | Prayed at D.C.S.S. Altar Unit 658 | -10/Materials | KI resistance permanently improved by X0-1V1 (+10%; -100 max core) 715 | -10/Materials | Entered Mines 788 | -10/Mines | X0-1V1 added 0b10 threat records associated with you (minor) 934 | -10/Mines | Learned location of Storage (-9) 942 | -10/Mines | Discovered new exit (range 5) 948 | -10/Mines | Entered Materials 948 | -9/Materials | Evolved 2 slots: Propulsion x1, Utility x1 1027 | -9/Materials | Melee accuracy permanently improved by X0-1V1 (+6%; -60 max core) 1175 | -9/Materials | Discovered new exit (range 5) 1326 | -9/Materials | Build established: Scavenger-Mutant 1428 | -9/Materials | Discovered new exit (range 4) 1487 | -9/Materials | Identified exit to Mines 1487 | -9/Materials | Identified exit to Storage 1680 | -9/Materials | Core integrity fell below 50% 1708 | -9/Materials | X0-1V1 added 0b10 threat records associated with you (considerable) 1828 | -9/Materials | Entered Storage 2001 | -9/Storage | Weapon slot count permanently improved by X0-1V1 (+1) 2157 | -9/Storage | X0-1V1 announced a LAN party 2246 | -9/Storage | Core integrity fell below 20% 2269 | -9/Storage | System corruption reached 10% 2277 | -9/Storage | Discovered new exit (range 15) 2301 | -9/Storage | Build established: Scavenger-Gunner 2354 | -9/Storage | System corruption reached 30% 2411 | -9/Storage | X0-1V1 caused items to flee you 2450 | -9/Storage | Garrison activated, responded to threat 2495 | -9/Storage | Identified exit to Garrison 2495 | -9/Storage | Entered Garrison 2495 | -9/Garrison | Accompanied by 4 allies 2563 | -9/Garrison | Triggered checkpoint 2601 | -9/Garrison | Garrison Relay disabled 2643 | -9/Garrison | X0-1V1 vaporized surrounding terrain (radius 25) 2663 | -9/Garrison | Destroyed by Y-45 Defender with Beam Rifle Last Messages --------------- relay unit. 02604_ Acquired Relay Coupler [Behemoth]. 02606_ Acquired Relay Coupler [Sentry]. 02608_ Acquired Relay Coupler [Hunter]. 02621_ System corrupted: Substantial component data lost. 02638_ Acquired 10 matter. 02640_ System corrupted: Matter fused (-5). 02640_ Acquired 5 matter. Surrounding terrain vaporized. 02643_ X0-1V1: "Learned that one from the Sigix." 02652_ Mercenary 2d destroyed. 02655_ Vines of energy appear to reach up from the ground. Y-45 Defender caught in stasis. 02655_ Mercenary 2e destroyed. 02660_ System corrupted: Component data lost. 02661_ Y-45 Defender destroyed. 02663_ X0-1V1 giggles madly! Map ----- +----------------------------------------------------+ | ?????????????????????????????????????????????????? | | ?????????????????????????????????????????????????? | | ?????????????????????????????????????????????????? | | ?????????????????????????????????????????????????? | | ?????????????????????????????????????????????????? | | ?????????????????????????????????????????????????? | | ?????????????????????????????????????????????????? | | ?????????????????????????????????????????????????? | | ??????????????????????? "?"??????????????????????? | | ????????????????????? "?"## ???????????????????? | | ?????????????????? ;#;"# ????????????????? | | ???????????????? ; "" ??????????????? | | ?????????????? ; ; ????????????? | | ?????????????? ; "; ???????????? | | ?????????????? ; ;"; ???????????? | | ????????????? ; ;;; ;;;;; ??????????? | | ????????????? ; ; ;] ]; ??????????? | | ???????????? ; ; ;] ]; ?????????? | | ???????????? ; ; ;] ]; ?????????? | | ??????????? ;;; ; ;] ]; ????????? | | ??????????? ;;;;;!% ;;;;;;;; ;" ????????? | | ?????????? ; #%=[ " ????????? | | ?????????? ;=;;;**!;;;;;;#;;; ???????? | | ?????????? ;*; ;;;*; ; ; ???????? | | ??????####; ;*; ;!; ; ; "??????? | | ??????# ; ;;;;;;;@;;;=;; ; "??????? | | ??????# ;;;;;;;;;% *[ %; %%* ; "??????? | | ??????# ==[;;;;;; g[;; ; ""??????? | | ??????# [ ; ;;; ; ; " ??????? | | ??????#####;;;#;;;; ; ; ; "???????? | | ?????????????; ; ; ; ; ; "???????? | | ???????????? ; ;;;; ;;;;;;; ; ;;;;; ????????? | | ???????????? ; # # ; ; !!; ????????? | | ?????????????;;;;"; ;;;;; ; ; ;;=%[ ????????? | | ????????????? ; ; ; ; ; ; ;Y*""?????????? | | ?????????????? ; ; ; ; ; ; ; ? ?????????? | | ??????????????? ; ; ; ; ;;#;;;""???????????? | | ???????????????? " ;;;;;#;;;; ????????????? | | ??????????????????" ? ? ????????????? | | ??????????????????# ? ???????????????? | | ??????????????????####?;;;?;""" ?????????????????? | | ??????????????????????????? ""???????????????????? | | ?????????????????????????????????????????????????? | | ?????????????????????????????????????????????????? | | ?????????????????????????????????????????????????? | | ?????????????????????????????????????????????????? | | ?????????????????????????????????????????????????? | | ?????????????????????????????????????????????????? | | ?????????????????????????????????????????????????? | | ?????????????????????????????????????????????????? | +----------------------------------------------------+ Best States ------------- Heat Dissipation 42 Energy Generation 14 Energy Capacity 1350 Matter Stores 800 Matter Capacity 800 Sight Range 18 Terrain Scan Density 10 Armor Coverage 150 Resistance: KI 10 Evasion (%) 44 Targeting Accuracy 6 Item Schematics ----------------- None Robot Schematics ------------------ None Fabricated ------------ Nothing Repaired ---------- Nothing Studied --------- Com. Wheel | -9/Materials | Hacked Arm. Wheel | -9/Materials | Hacked Hvy. Assault Rifle | -9/Materials | Hacked Datajack | -9/Materials | Hacked Ion Engine | -9/Materials | Hacked Beam Rifle | -9/Materials | Hacked Alien Tech Used ----------------- None Achievements -------------- None Challenges ------------ None Game ------ Seed SniperOpticalCalibrator Manual? 0 Play Time 00:40:35 Cumulative 161.5 hours Start 2026.09.17 @ 12:15:49 End 2026.09.17 @ 17:01:37 Sessions 2 Manual Loads 0 Difficulty Rogue Special Mode None Game No. 74 Rogue 74 Adventurer 0 Explorer 0 Win Type - Total 4 Types 3/0/0/0/1/0/0/0/0/0 Lore% 19 Gallery% 51 Achievement% 34 Wizard Run 0 Options --------- Layout 1 ASCII 0 Keyboard 0 Movement Arrows Keybinds 0 Fullscreen 1 Font 24/Smallcaps Map View 50x35 Zoom Use 0% Tactical HUD 1 Map Filters NONE Filters NONE Steam 1 RUN: 3d8000b9-e1c6-4827-a8a7-fca6ca9dea31